fUST/lending_fUST_20260524
["ID","MTS","AMOUNT","RATE_DAILY","PERIOD"]
[422907028,1779604244000,-500.0,0.00012471,2]
[422907031,1779604244000,-500.0,0.00012471,2]
[422907027,1779604244000,-500.70175716,0.00012471,2]
[422907030,1779604244000,-500.35908657,0.00012471,2]
[422907032,1779604244000,-500.34963449,0.00012471,2]
[422907035,1779604244000,-500.0,0.00012471,2]
[422907034,1779604244000,-500.0,0.00012471,2]
[422907033,1779604244000,-500.90028921,0.00012471,2]
[422907040,1779604244000,-500.17397271,0.00012471,2]
[422907039,1779604244000,-500.0,0.00012471,2]
[422906975,1779604244000,-500.0,0.00012471,2]
[422907036,1779604244000,-500.11354166,0.00012471,2]
[422907001,1779604244000,-500.0,0.00012471,2]
[422907041,1779604244000,-500.0,0.00012471,2]
[422906999,1779604244000,-500.0,0.00012471,2]
[422907000,1779604244000,-500.0,0.00012471,2]
[422906977,1779604244000,-500.0,0.00012471,2]
[422906973,1779604244000,-500.23716352,0.00012471,2]
[422906978,1779604244000,-500.0,0.00012471,2]
[422906974,1779604244000,-500.0,0.00012471,2]
[422906979,1779604244000,-500.0,0.00012471,2]
[422906984,1779604244000,-500.0,0.00012471,2]
[422906993,1779604244000,-500.17534177,0.00012471,2]
[422906996,1779604244000,-500.22864411,0.00012471,2]
[422906995,1779604244000,-500.0,0.00012471,2]
[422906989,1779604244000,-500.0,0.00012471,2]
[422906988,1779604244000,-500.0,0.00012471,2]
[422906991,1779604244000,-500.0,0.00012471,2]
[422906994,1779604244000,-500.0,0.00012471,2]
[422906986,1779604244000,-500.0,0.00012471,2]
[422906976,1779604244000,-500.0,0.00012471,2]
[422906992,1779604244000,-500.28062496,0.00012471,2]
[422906985,1779604244000,-500.0,0.00012471,2]
[422907006,1779604244000,-500.29625024,0.00012471,2]
[422907008,1779604244000,-618.85540538,0.00012471,2]
[422906998,1779604244000,-500.0,0.00012471,2]
[422907010,1779604244000,-500.18808399,0.00012471,2]
[422907009,1779604244000,-643.20165941,0.00012471,2]
[422907007,1779604244000,-500.0,0.00012471,2]
[422907002,1779604244000,-500.0,0.00012471,2]
[422907003,1779604244000,-500.2002204,0.00012471,2]
[422907004,1779604244000,-500.28130502,0.00012471,2]
[422906997,1779604244000,-500.0,0.00012471,2]
[422906990,1779604244000,-166.52133704,0.00012471,2]
[422906987,1779604244000,-420.21,0.00012471,2]
[422907005,1779604244000,-500.0,0.00012471,2]
[422907084,1779604245000,-500.0,0.00012471,2]
[422907087,1779604245000,-500.0,0.00012471,2]
[422907085,1779604245000,-532.42,0.00012471,2]
[422907086,1779604245000,-500.0,0.00012471,2]
[422907080,1779604245000,-500.0,0.00012471,2]
[422907076,1779604245000,-500.0,0.00012471,2]
[422907082,1779604245000,-560.48101909,0.00012471,2]
[422907083,1779604245000,-500.0,0.00012471,2]
[422907104,1779604245000,-553.38,0.00012471,2]
[422907075,1779604245000,-500.0,0.00012471,2]
[422907072,1779604245000,-500.0,0.00012471,2]
[422907079,1779604245000,-500.0,0.00012471,2]
[422907089,1779604245000,-551.9,0.00012471,2]
[422907094,1779604245000,-500.0,0.00012471,2]
[422907090,1779604245000,-537.70323472,0.00012471,2]
[422907100,1779604245000,-500.0,0.00012471,2]
[422907099,1779604245000,-548.35,0.00012471,2]
[422907101,1779604245000,-500.0,0.00012471,2]
[422907097,1779604245000,-551.38369595,0.00012471,2]
[422907092,1779604245000,-500.0,0.00012471,2]
[422907095,1779604245000,-500.0,0.00012471,2]
[422907093,1779604245000,-500.0,0.00012471,2]
[422907091,1779604245000,-406.89349053,0.00012471,2]
[422907098,1779604245000,-500.0,0.00012471,2]
[422907096,1779604245000,-500.0,0.00012471,2]
[422907102,1779604245000,-500.0,0.00012471,2]
[422907105,1779604245000,-500.0,0.00012471,2]
[422907071,1779604245000,-500.28403195,0.00012471,2]
[422907088,1779604245000,-500.0,0.00012471,2]
[422907078,1779604245000,-500.8052468,0.00012471,2]
[422907064,1779604245000,-500.13873665,0.00012471,2]
[422907074,1779604245000,-500.0,0.00012471,2]
[422907050,1779604245000,-500.0,0.00012471,2]
[422907051,1779604245000,-500.0,0.00012471,2]
[422907044,1779604245000,-500.0,0.00012471,2]
[422907042,1779604245000,-500.21423738,0.00012471,2]
[422907043,1779604245000,-500.14661618,0.00012471,2]
[422907047,1779604245000,-500.13859997,0.00012471,2]
[422907046,1779604245000,-500.0,0.00012471,2]
[422907049,1779604245000,-513.67,0.00012471,2]
[422907048,1779604245000,-500.14612561,0.00012471,2]
[422907045,1779604245000,-500.4372812,0.00012471,2]
[422907053,1779604245000,-500.0,0.00012471,2]
[422907065,1779604245000,-500.0,0.00012471,2]
[422907063,1779604245000,-500.1096463,0.00012471,2]
[422907059,1779604245000,-500.0,0.00012471,2]
[422907054,1779604245000,-500.0,0.00012471,2]
[422907052,1779604245000,-519.20332235,0.00012471,2]
[422907055,1779604245000,-500.0,0.00012471,2]
[422907056,1779604245000,-500.0,0.00012471,2]
[422907061,1779604245000,-500.0,0.00012471,2]
[422907060,1779604245000,-500.0,0.00012471,2]
[422907058,1779604245000,-500.0,0.00012471,2]
[422907062,1779604245000,-500.0,0.00012471,2]
[422907057,1779604245000,-500.0,0.00012471,2]
[422907067,1779604245000,-500.0,0.00012471,2]
[422907066,1779604245000,-500.0,0.00012471,2]
[422907068,1779604245000,-500.0,0.00012471,2]
[422907077,1779604245000,-500.0,0.00012471,2]
[422907069,1779604245000,-500.0,0.00012471,2]
[422907073,1779604245000,-500.23784671,0.00012471,2]
[422907070,1779604245000,-500.0,0.00012471,2]
[422907109,1779604245000,-500.0,0.00012471,2]
[422907081,1779604245000,-500.0,0.00012471,2]
[422907103,1779604245000,-500.0,0.00012471,2]
[422907138,1779604245000,-155.110567,0.00013898,2]
[422907141,1779604245000,-155.110567,0.00013898,2]
[422907145,1779604245000,-155.110567,0.00013898,2]
[422907144,1779604245000,-155.110567,0.00013898,2]
[422907146,1779604245000,-155.110567,0.00013898,2]
[422907147,1779604245000,-155.060433,0.00013898,2]
[422907148,1779604245000,-155.060433,0.00013898,2]
[422907150,1779604245000,-155.060433,0.00013898,2]
[422907149,1779604245000,-155.060433,0.00013898,2]
[422907151,1779604245000,-155.060433,0.00013898,2]
[422907153,1779604245000,-155.060433,0.00013898,2]
[422907152,1779604245000,-155.060433,0.00013898,2]
[422907154,1779604245000,-155.060433,0.00013898,2]
[422907155,1779604245000,-155.060433,0.00013898,2]
[422907159,1779604245000,-155.060433,0.00013898,2]
[422907156,1779604245000,-155.060433,0.00013898,2]
[422907158,1779604245000,-155.060433,0.00013898,2]
[422907157,1779604245000,-155.060433,0.00013898,2]
[422907160,1779604245000,-155.060433,0.00013898,2]
[422907164,1779604245000,-155.060433,0.00013898,2]
[422907163,1779604245000,-155.060433,0.00013898,2]
[422907162,1779604245000,-155.060433,0.00013898,2]
[422907161,1779604245000,-155.060433,0.00013898,2]
[422907165,1779604245000,-172.064528,0.00013898,2]
[422907167,1779604245000,-172.064528,0.00013898,2]
[422907168,1779604245000,-172.064528,0.00013898,2]
[422907170,1779604245000,-156.415626,0.00013898,2]
[422907169,1779604245000,-172.064528,0.00013898,2]
[422907106,1779604245000,-396.51009005,0.00012471,2]
[422907143,1779604245000,-155.110567,0.00013898,2]
[422907132,1779604245000,-155.110567,0.00013898,2]
[422907166,1779604245000,-172.064528,0.00013898,2]
[422907140,1779604245000,-155.110567,0.00013898,2]
[422907113,1779604245000,-293.07789277,0.00012471,2]
[422907108,1779604245000,-500.0,0.00012471,2]
[422907111,1779604245000,-500.0,0.00012471,2]
[422907107,1779604245000,-500.0,0.00012471,2]
[422907110,1779604245000,-544.34,0.00012471,2]
[422907114,1779604245000,-600.0,0.00012524,2]
[422907115,1779604245000,-420.0,0.0001303,2]
[422907112,1779604245000,-500.0,0.00012471,2]
[422907117,1779604245000,-219.0,0.00013534,2]
[422907116,1779604245000,-377.50367052,0.0001313,2]
[422907119,1779604245000,-720.0,0.00013776,2]
[422907118,1779604245000,-1000.0,0.00013699,2]
[422907128,1779604245000,-155.110567,0.00013898,2]
[422907129,1779604245000,-155.110567,0.00013898,2]
[422907127,1779604245000,-155.110567,0.00013898,2]
[422907123,1779604245000,-155.110567,0.00013898,2]
[422907131,1779604245000,-155.110567,0.00013898,2]
[422907130,1779604245000,-155.110567,0.00013898,2]
[422907135,1779604245000,-155.110567,0.00013898,2]
[422907136,1779604245000,-155.110567,0.00013898,2]
[422907142,1779604245000,-155.110567,0.00013898,2]
[422907137,1779604245000,-155.110567,0.00013898,2]
[422907133,1779604245000,-155.110567,0.00013898,2]
[422907134,1779604245000,-155.110567,0.00013898,2]
[422907122,1779604245000,-155.110567,0.00013898,2]
[422907120,1779604245000,-152.0,0.00013877,7]
[422907125,1779604245000,-155.110567,0.00013898,2]
[422907126,1779604245000,-155.110567,0.00013898,2]
[422907139,1779604245000,-155.110567,0.00013898,2]
[422907124,1779604245000,-155.110567,0.00013898,2]
[422907121,1779604245000,-155.110567,0.00013898,2]
[422907171,1779604246000,-156.415626,0.00013898,2]
[422907172,1779604246000,-156.415626,0.00013898,2]
[422907179,1779604246000,-156.415626,0.00013898,2]
[422907183,1779604246000,-180.0,0.00014306,2]
[422907178,1779604246000,-156.415626,0.00013898,2]
[422907181,1779604246000,-170.756,0.00014,2]
[422907173,1779604246000,-156.415626,0.00013898,2]
[422907176,1779604246000,-156.415626,0.00013898,2]
[422907180,1779604246000,-185.0,0.00013994,2]
[422907174,1779604246000,-156.415626,0.00013898,2]
[422907177,1779604246000,-156.415626,0.00013898,2]
[422907175,1779604246000,-278.848828,0.00013898,2]
[422907194,1779604246000,-236.3216568,0.00014641,2]
[422907185,1779604246000,-458.2402146,0.00014625,2]
[422907182,1779604246000,-37830.47708917,0.000142,2]
[422907195,1779604246000,-752.3440207,0.00014908,2]
[422907184,1779604246000,-151.3239039,0.00014625,2]
[422907186,1779604246000,-325.9692126,0.00014625,2]
[422907188,1779604246000,-151.7819859,0.00014625,2]
[422907187,1779604246000,-456.6813334,0.00014625,2]
[422907191,1779604246000,-456.6813335,0.00014625,2]
[422907190,1779604246000,-151.0,0.00014625,2]
[422907189,1779604246000,-151.0,0.00014625,2]
[422907192,1779604246000,-326.012688,0.00014625,2]
[422907196,1779604246000,-342875.71200348,0.00015,2]
[422907193,1779604246000,-151.0,0.00014641,2]
[422907199,1779604247000,-778.70111579,0.00010962,2]
[422907200,1779604319000,-2208.68545094,0.00010852,2]
[422907203,1779605225000,-287.63458838,9.239e-05,2]
[422907206,1779605345000,-151.0,8.962e-05,2]
[422907207,1779605345000,-1999.42747828,9.239e-05,2]
[422907205,1779605345000,-5000.0,8.872e-05,2]
[422907248,1779605432000,-269.0,0.00010263,2]
[422907249,1779605432000,-300.0,0.00010263,2]
[422907245,1779605432000,-319.87531014,9.285e-05,2]
[422907244,1779605432000,-3849.44464591,9.147e-05,2]
[422907251,1779605432000,-300.0,0.00010632,2]
[422907253,1779605432000,-300.0,0.00010632,2]
[422907263,1779605432000,-300.0,0.00010632,2]
[422907242,1779605432000,-5000.0,9.056e-05,2]
[422907257,1779605432000,-300.0,0.00010632,2]
[422907268,1779605432000,-274.20713587,0.00010632,2]
[422907259,1779605432000,-300.0,0.00010632,2]
[422907261,1779605432000,-300.0,0.00010632,2]
[422907265,1779605432000,-300.0,0.00010632,2]
[422907255,1779605432000,-300.0,0.00010632,2]
[422907651,1779605438000,-300.0,0.00010632,2]
[422907648,1779605438000,-300.0,0.00010632,2]
[422907650,1779605438000,-300.0,0.00010632,2]
[422907647,1779605438000,-300.0,0.00010632,2]
[422907644,1779605438000,-4681.54622423,8.965e-05,2]
[422907646,1779605438000,-25.79286413,0.00010632,2]
[422907645,1779605438000,-318.45377577,8.965e-05,2]
[422907653,1779605438000,-506.89611728,0.0001068,2]
[422907649,1779605438000,-300.0,0.00010632,2]
[422907663,1779605438000,-500.0,0.0001068,2]
[422907658,1779605438000,-500.0,0.0001068,2]
[422907652,1779605438000,-300.0,0.00010632,2]
[422907655,1779605438000,-500.0,0.0001068,2]
[422907656,1779605438000,-224.3767145,0.0001068,2]
[422907654,1779605438000,-287.63458838,0.0001068,2]
[422907659,1779605438000,-500.0,0.0001068,2]
[422907664,1779605438000,-500.0,0.0001068,2]
[422907662,1779605438000,-418.46040298,0.0001068,2]
[422907661,1779605438000,-500.0,0.0001068,2]
[422907660,1779605438000,-500.0,0.0001068,2]
[422907657,1779605438000,-500.0,0.0001068,2]
[422907677,1779605439000,-161.73758927,0.00012376,2]
[422907676,1779605439000,-720.0,0.00011928,2]
[422907679,1779605439000,-117.92416166,0.00013121,2]
[422907678,1779605439000,-587.0,0.00012412,2]
[422907670,1779605439000,-600.0,0.00010844,2]
[422907674,1779605439000,-420.0,0.00011286,2]
[422907673,1779605439000,-377.45286597,0.00011285,2]
[422907666,1779605439000,-500.0,0.0001068,2]
[422907675,1779605439000,-178.0470173,0.00011902,2]
[422907669,1779605439000,-162.0019,0.00010742,2]
[422907668,1779605439000,-500.0,0.0001068,2]
[422907681,1779605439000,-435.0304218,0.00013285,2]
[422907667,1779605439000,-500.0,0.0001068,2]
[422907665,1779605439000,-500.0,0.0001068,2]
[422907671,1779605439000,-194.72,0.00010977,2]
[422907691,1779605439000,-1000.0,0.00014433,2]
[422907672,1779605439000,-502.3499824,0.00011176,2]
[422907692,1779605439000,-167.506,0.00014433,2]
[422907693,1779605439000,-1693.2296356,0.00014816,2]
[422907697,1779605439000,-50000.0,0.00014982,2]
[422907698,1779605439000,-15673.56188652,0.00015,2]
[422907695,1779605439000,-3009.3760828,0.00014835,2]
[422907694,1779605439000,-485.83203085,0.00014816,2]
[422907690,1779605439000,-225.30548169,0.00014313,21]
[422907688,1779605439000,-282.19101655,0.0001425,2]
[422907686,1779605439000,-152.0,0.00013979,7]
[422907696,1779605439000,-271.84317784,0.000149,2]
[422907685,1779605439000,-325.3262619,0.00013819,2]
[422907683,1779605439000,-1000.0,0.00013699,2]
[422907684,1779605439000,-456.6380285,0.00013819,2]
[422907682,1779605439000,-597.0,0.00013649,2]
[422907687,1779605439000,-152.0,0.00013979,7]
[422907689,1779605439000,-178.15797612,0.00014312,2]
[422907680,1779605439000,-746.07583834,0.00013121,2]
[422907700,1779605441000,-3821.99177049,0.00015,2]
[422907750,1779605444000,-152.47485356,0.00015301,2]
[422907747,1779605444000,-150.98,0.000153,2]
[422907757,1779605444000,-198.485328,0.00015427,2]
[422907756,1779605444000,-275.630595,0.00015427,2]
[422907746,1779605444000,-151.6,0.000153,2]
[422907737,1779605444000,-8913.19328322,0.000152,2]
[422907742,1779605444000,-492.60797762,0.00015285,2]
[422907741,1779605444000,-271.84317782,0.00015275,2]
[422907738,1779605444000,-1426.92866402,0.0001524,2]
[422907745,1779605444000,-150.66,0.000153,2]
[422907739,1779605444000,-160.0,0.00015246,5]
[422907748,1779605444000,-150.98,0.000153,2]
[422907761,1779605444000,-218.642903,0.00015427,2]
[422907753,1779605444000,-1426.92866402,0.0001539,2]
[422907749,1779605444000,-8913.19328322,0.000153,2]
[422907755,1779605444000,-172.11682818,0.000154,2]
[422907754,1779605444000,-150.66,0.000154,2]
[422907751,1779605444000,-292.49860791,0.00015317,2]
[422907758,1779605444000,-225.971721,0.00015427,2]
[422907762,1779605444000,-245.900259,0.00015427,2]
[422907764,1779605444000,-347.003826,0.00015427,2]
[422907759,1779605444000,-278.977987,0.00015427,2]
[422907763,1779605444000,-328.101467,0.00015427,2]
[422907768,1779605444000,-247.440337,0.00015427,2]
[422907740,1779605444000,-724.56165907,0.00015275,2]
[422907752,1779605444000,-500.0,0.00015342,2]
[422907744,1779605444000,-150.66,0.000153,2]
[422907714,1779605444000,-168.0,0.00015,2]
[422907743,1779605444000,-1426.92866402,0.00015287,2]
[422907767,1779605444000,-170.648508,0.00015427,2]
[422907710,1779605444000,-729.67770619,0.00015,2]
[422907709,1779605444000,-6585.51744111,0.00015,2]
[422907712,1779605444000,-308.28969024,0.00015,60]
[422907713,1779605444000,-2000.0,0.00015,40]
[422907717,1779605444000,-236.121532,0.00015,2]
[422907715,1779605444000,-2811.80637342,0.00015,2]
[422907716,1779605444000,-236.0,0.00015,5]
[422907718,1779605444000,-8913.19328322,0.00015,2]
[422907731,1779605444000,-151.51,0.000151,2]
[422907730,1779605444000,-150.66,0.000151,2]
[422907729,1779605444000,-150.66,0.000151,2]
[422907736,1779605444000,-151.31,0.000152,2]
[422907728,1779605444000,-271.84317782,0.00015088,2]
[422907722,1779605444000,-5281.47355287,0.00015,2]
[422907720,1779605444000,-166.0,0.00015,2]
[422907721,1779605444000,-1351.84269929,0.00015,2]
[422907723,1779605444000,-500.0,0.00015,2]
[422907726,1779605444000,-500.0,0.00015068,2]
[422907727,1779605444000,-1673.934643,0.00015068,2]
[422907725,1779605444000,-152.0,0.00015012,30]
[422907724,1779605444000,-524.18251079,0.00015,2]
[422907732,1779605444000,-151.0,0.000151,2]
[422907735,1779605444000,-150.66,0.000152,2]
[422907734,1779605444000,-278.10149299,0.0001515,20]
[422907733,1779605444000,-171.02854081,0.00015124,60]
[422907719,1779605444000,-166.0,0.00015,2]
[422907766,1779605444000,-261.581755,0.00015427,2]
[422907711,1779605444000,-13929.69997725,0.00015,2]
[422907765,1779605444000,-190.852105,0.00015427,2]
[422907798,1779605444000,-1277.80762427,0.000156,2]
[422907795,1779605444000,-151.51,0.000156,2]
[422907799,1779605444000,-4823.37092959,0.000156,2]
[422907796,1779605444000,-150.98,0.000156,2]
[422907804,1779605444000,-304.0,0.00015612,2]
[422907797,1779605444000,-150.93,0.000156,2]
[422907805,1779605444000,-378.25740551,0.00015612,2]
[422907803,1779605444000,-744.67125851,0.00015612,2]
[422907807,1779605444000,-75.62104697,0.00015619,2]
[422907810,1779605444000,-1426.92866402,0.00015619,2]
[422907809,1779605444000,-139.17411914,0.00015619,2]
[422907816,1779605444000,-150.66,0.000157,2]
[422907801,1779605444000,-1426.92866402,0.00015604,2]
[422907811,1779605444000,-271.84317782,0.0001565,2]
[422907812,1779605444000,-172.11682818,0.0001565,30]
[422907817,1779605444000,-150.66,0.000157,2]
[422907815,1779605444000,-151.54,0.000157,2]
[422907808,1779605444000,-471.77632926,0.00015619,2]
[422907814,1779605444000,-1426.92866402,0.00015694,2]
[422907813,1779605444000,-1426.92866402,0.00015686,2]
[422907820,1779605444000,-151.31,0.000157,2]
[422907821,1779605444000,-152.47485356,0.00015731,14]
[422907819,1779605444000,-150.98,0.000157,2]
[422907822,1779605444000,-172.11682818,0.00015733,30]
[422907824,1779605444000,-321556.96572027,0.00015742,7]
[422907825,1779605444000,-10301.96296831,0.00015742,7]
[422907818,1779605444000,-151.6,0.000157,2]
[422907823,1779605444000,-1426.92866402,0.00015738,2]
[422907802,1779605444000,-230.5486452,0.00015609,17]
[422907800,1779605444000,-4089.82235363,0.000156,2]
[422907770,1779605444000,-353.140103,0.00015427,2]
[422907780,1779605444000,-532.30572908,0.000155,2]
[422907781,1779605444000,-8380.88755414,0.000155,2]
[422907769,1779605444000,-168.901602,0.00015427,2]
[422907771,1779605444000,-1426.92866402,0.00015441,2]
[422907772,1779605444000,-271.84317782,0.00015463,2]
[422907773,1779605444000,-1426.92866402,0.00015472,2]
[422907775,1779605444000,-1426.92866402,0.00015486,2]
[422907774,1779605444000,-172.11682818,0.00015484,2]
[422907777,1779605444000,-150.66,0.000155,2]
[422907778,1779605444000,-388.5312,0.000155,2]
[422907776,1779605444000,-150.66,0.000155,2]
[422907806,1779605444000,-500.0,0.00015616,2]
[422907779,1779605444000,-151.15,0.000155,2]
[422907793,1779605444000,-1426.92866402,0.00015594,2]
[422907786,1779605444000,-152.47485356,0.00015516,7]
[422907794,1779605444000,-150.66,0.000156,2]
[422907785,1779605444000,-191.703705,0.00015504,2]
[422907787,1779605444000,-1426.92866402,0.00015522,2]
[422907784,1779605444000,-422.254004,0.00015504,2]
[422907783,1779605444000,-227.462396,0.00015504,2]
[422907791,1779605444000,-172.11682818,0.00015567,30]
[422907792,1779605444000,-1426.92866402,0.00015575,2]
[422907788,1779605444000,-151.3655693,0.00015566,2]
[422907789,1779605444000,-456.6813334,0.00015566,2]
[422907790,1779605444000,-151.0,0.00015566,2]
[422907782,1779605444000,-277.859578,0.00015504,2]
[422907760,1779605444000,-203.330301,0.00015427,2]
[422907826,1779605445000,-673.32755196,0.00015742,7]
[422907852,1779605447000,-1093.92499483,0.00015742,7]
[422907845,1779605447000,-600.0,0.00015299,2]
[422907846,1779605447000,-1000.0,0.000155,2]
[422907847,1779605447000,-27046.30297317,0.00015742,7]
[422907850,1779605447000,-751.50978022,0.00015742,7]
[422907849,1779605447000,-13021.58074445,0.00015742,7]
[422907851,1779605447000,-232463.28879086,0.00015742,7]
[422907848,1779605447000,-3008.28133464,0.00015742,7]
[422907968,1779606632000,-404.89847838,0.00010284,2]
[422908082,1779606639000,-500.0,0.0001477,2]
[422908097,1779606639000,-500.0,0.0001477,2]
[422908085,1779606639000,-500.0,0.0001477,2]
[422908087,1779606639000,-500.0,0.0001477,2]
[422908089,1779606639000,-500.0,0.0001477,2]
[422908091,1779606639000,-371.8,0.0001477,2]
[422908093,1779606639000,-582.82,0.0001477,2]
[422908098,1779606639000,-1687.23654372,0.00014773,2]
[422908102,1779606639000,-1700000.0,0.00014776,2]
[422908100,1779606639000,-6628.8338296,0.00014773,2]
[422908106,1779606639000,-500.0,0.00014873,2]
[422908108,1779606639000,-4456.59664161,0.00015,2]
[422908104,1779606639000,-553.66780374,0.00014873,2]
[422908070,1779606639000,-1885.38598946,0.000146,2]
[422908109,1779606639000,-1339.147714,0.00015068,2]
[422908122,1779606639000,-370.96777217,0.00015427,2]
[422908124,1779606639000,-4456.59664161,0.000155,2]
[422908126,1779606639000,-456.6813334,0.0001554,2]
[422908112,1779606639000,-641.2,0.00015147,2]
[422908118,1779606639000,-1687.23654368,0.0001523,2]
[422908116,1779606639000,-4456.59664161,0.000152,2]
[422908095,1779606639000,-500.0,0.0001477,2]
[422908083,1779606639000,-500.0,0.0001477,2]
[422908078,1779606639000,-500.0,0.0001477,2]
[422908064,1779606639000,-731.92655771,0.000146,2]
[422908114,1779606639000,-500.0,0.00015178,2]
[422908032,1779606639000,-3321.23655342,0.00010284,2]
[422908036,1779606639000,-295.10130453,0.00010388,2]
[422908046,1779606639000,-300.0,0.00014167,2]
[422908048,1779606639000,-300.0,0.00014167,2]
[422908037,1779606639000,-348.21953935,0.00012388,2]
[422908052,1779606639000,-1413.0,0.00014168,2]
[422908054,1779606639000,-2203.0,0.00014168,2]
[422908043,1779606639000,-238.0,0.00014166,2]
[422908041,1779606639000,-1000.0,0.00013699,2]
[422908068,1779606639000,-1731.75375268,0.000146,2]
[422908058,1779606639000,-401.33777417,0.00014388,2]
[422908060,1779606639000,-500.0,0.0001441,2]
[422908056,1779606639000,-185.0,0.00014168,2]
[422908039,1779606639000,-300.0,0.000127,2]
[422908045,1779606639000,-300.0,0.00014167,2]
[422908062,1779606639000,-203.105678,0.00014586,2]
[422908072,1779606639000,-169.415,0.00014641,2]
[422908074,1779606639000,-326.0126879,0.00014718,2]
[422908076,1779606639000,-500.0,0.0001477,2]
[422908080,1779606639000,-50000.0,0.0001477,2]
[422908065,1779606639000,-1549.06183365,0.000146,2]
[422908050,1779606639000,-648.729,0.00014168,2]
[422908120,1779606639000,-4456.59664161,0.000153,2]
[422908034,1779606639000,-1273.8649682,0.00010284,2]
[422908130,1779606639000,-218.9332642,0.0001554,2]
[422908187,1779606639000,-150.66,0.000158,2]
[422908128,1779606639000,-326.012688,0.0001554,2]
[422908179,1779606639000,-152.0,0.00015748,7]
[422908183,1779606639000,-160.97344141,0.0001575,5]
[422908189,1779606639000,-1150.02686185,0.000158,2]
[422908191,1779606639000,-4456.59664161,0.000158,2]
[422908197,1779606639000,-172.11682818,0.00015817,30]
[422908195,1779606639000,-724.56165907,0.00015809,2]
[422908193,1779606639000,-1426.92866402,0.00015808,2]
[422908212,1779606639000,-312.303443,0.00015876,2]
[422908181,1779606639000,-160.0,0.0001575,6]
[422908198,1779606639000,-1426.92866402,0.00015845,2]
[422908209,1779606639000,-215.316666,0.00015876,2]
[422908207,1779606639000,-757.29164826,0.00015871,2]
[422908214,1779606639000,-165.229828,0.00015876,2]
[422908216,1779606639000,-1426.92866402,0.0001588,2]
[422908225,1779606639000,-700.0,0.00015883,7]
[422908232,1779606639000,-1509.5865512,0.00015883,7]
[422908223,1779606639000,-3457.46627172,0.00015883,7]
[422908220,1779606639000,-473.74218606,0.00015883,7]
[422908230,1779606639000,-122.02829751,0.00015883,7]
[422908218,1779606639000,-550243.64977207,0.00015883,7]
[422908200,1779606639000,-757.29164826,0.00015852,2]
[422908177,1779606639000,-530.08141931,0.00015738,2]
[422908185,1779606639000,-857.36837849,0.000158,2]
[422908171,1779606639000,-1687.23654368,0.00015686,2]
[422908134,1779606639000,-151.0,0.00015548,2]
[422908132,1779606639000,-326.0126879,0.0001554,2]
[422908136,1779606639000,-151.0,0.00015548,2]
[422908137,1779606639000,-151.0,0.00015548,2]
[422908151,1779606639000,-151.0,0.00015548,2]
[422908155,1779606639000,-326.012688,0.00015548,2]
[422908157,1779606639000,-151.0,0.00015548,2]
[422908173,1779606639000,-500.0,0.00015738,2]
[422908139,1779606639000,-326.012688,0.00015548,2]
[422908141,1779606639000,-456.7008752,0.00015548,2]
[422908143,1779606639000,-151.0,0.00015548,2]
[422908153,1779606639000,-179.560675,0.00015548,2]
[422908149,1779606639000,-324.6819939,0.00015548,2]
[422908175,1779606639000,-500.0,0.00015738,2]
[422908161,1779606639000,-326.0126879,0.00015548,2]
[422908168,1779606639000,-4456.59664161,0.000156,2]
[422908165,1779606639000,-161.73758927,0.00015569,2]
[422908170,1779606639000,-346.4132359,0.00015616,2]
[422908163,1779606639000,-196.9611184,0.00015548,2]